bitfinex/quotes_ETHUSD_20251124
["timestamp","ask_amount","ask_price","bid_price","bid_amount"]
[1763997550116,0.002,2832.2,2832.1,0.1472]
[1763997551228,0.002,2832.2,2831.1,0.72559411]
[1763997551457,0.002,2832.2,2832.1,0.1472]
[1763997552151,0.002,2832.2,2831.2,0.84689801]
[1763997552358,0.002,2832.2,2831.5,0.1]
[1763997552719,0.002,2832.2,2831.3,0.4551]
[1763997553156,0.002,2832.2,2831.2,0.1]
[1763997553472,0.4609,2832.1,2831.0,0.1472]
[1763997553616,0.4609,2832.1,2831.0,0.2472]
[1763997553815,0.183,2831.1,2829.9,7.59618595]
[1763997554056,0.183,2831.1,2830.1,0.93627859]
[1763997554260,0.6439,2831.1,2830.1,0.1606]
[1763997554562,0.233,2831.3,2830.3,0.1]
[1763997555158,0.4609,2831.2,2830.1,0.1616]
[1763997555522,0.4609,2831.2,2830.1,0.001]
[1763997555957,0.183,2830.2,2830.1,0.001]
[1763997556432,0.8769,2830.2,2829.9,0.001]
[1763997556622,0.405504,2830.1,2829.6,0.001]
[1763997556823,0.183,2829.7,2829.6,0.001]
[1763997557220,0.6439,2829.7,2829.6,0.001]
[1763997557567,0.6439,2830.2,2829.6,0.001]
[1763997557769,0.233,2829.9,2829.6,0.001]
[1763997558133,0.4609,2829.8,2829.6,0.001]
[1763997558537,0.233,2829.7,2829.6,0.001]
[1763997558974,0.6939,2829.7,2829.6,0.001]
[1763997559867,0.233,2829.7,2829.6,0.001]
[1763997560032,0.405504,2830.1,2829.6,0.001]
[1763997560230,0.233,2829.7,2829.6,0.001]
[1763997560870,0.7262,2829.7,2829.6,0.001]
[1763997561160,0.7262,2829.7,2828.3,0.001]
[1763997561320,0.4932,2829.6,2828.3,0.001]
[1763997561523,0.1979,2828.4,2828.3,0.001]
[1763997562355,0.233,2828.6,2828.3,0.001]
[1763997562563,0.4932,2828.5,2828.3,0.001]
[1763997562764,0.405504,2829.1,2828.3,0.001]
[1763997562924,0.233,2828.5,2828.3,0.001]
[1763997563333,0.4932,2828.4,2828.3,0.001]
[1763997563749,0.233,2828.5,2828.3,0.001]
[1763997564163,0.233,2828.7,2828.3,0.001]
[1763997564546,0.7262,2828.7,2828.3,0.001]
[1763997564862,0.233,2828.6,2828.3,0.001]
[1763997565248,0.4924,2829.0,2828.3,0.001]
[1763997565765,0.233,2828.9,2828.3,0.001]
[1763997565936,0.4924,2829.0,2828.3,0.001]
[1763997566357,0.233,2828.9,2828.3,0.001]
[1763997566553,0.1979,2829.2,2828.3,0.001]
[1763997566757,0.233,2829.1,2828.3,0.406504]
[1763997567068,0.233,2829.1,2828.3,0.001]
[1763997567497,0.1979,2829.5,2828.3,0.101]
[1763997567793,0.7262,2829.4,2828.3,0.001]
[1763997568269,0.4932,2829.3,2828.3,0.001]
[1763997570055,0.233,2829.2,2828.3,0.001]
[1763997570556,0.4932,2829.1,2828.3,0.001]
[1763997571655,0.233,2829.0,2828.3,0.101]
[1763997571855,7.11455822,2830.1,2828.3,0.101]
[1763997571856,0.4932,2829.9,2828.4,0.06335567]
[1763997572060,0.002,2829.7,2828.9,0.1]
[1763997572255,0.002,2829.7,2828.5,0.405504]
[1763997572256,0.002,2829.7,2828.7,0.1]
[1763997572560,0.002,2829.7,2828.4,0.72559411]
[1763997572756,0.002,2829.7,2828.5,0.81211523]
[1763997572999,0.002,2829.7,2828.8,0.1]
[1763997573198,0.002,2829.7,2828.9,0.405504]
[1763997573506,0.002,2829.7,2829.1,0.1]
[1763997574095,0.002,2829.7,2828.9,0.405504]
[1763997574494,0.002,2829.7,2829.1,0.1]
[1763997574658,0.002,2829.7,2828.4,0.72559411]
[1763997574659,0.002,2829.7,2828.4,1.13109811]
[1763997574879,0.002,2829.7,2829.0,0.1]
[1763997575077,0.002,2829.7,2828.6,0.505504]
[1763997575981,0.4952,2829.7,2828.6,0.1]
[1763997576414,0.4952,2829.7,2828.7,0.405504]
[1763997576622,0.002,2829.7,2828.9,0.1]
[1763997576916,0.002,2829.7,2828.6,0.1]
[1763997576917,0.235,2829.7,2828.6,0.1]
[1763997577113,0.235,2829.7,2828.3,0.129]
[1763997577114,0.7282,2829.7,2828.3,0.129]
[1763997577281,0.4932,2829.6,2828.3,0.001]
[1763997577479,0.4932,2829.6,2828.3,0.101]
[1763997577883,0.4932,2829.6,2828.3,0.001]
[1763997578916,0.233,2829.5,2828.3,0.001]
[1763997579122,0.4932,2829.6,2828.3,0.001]
[1763997579295,0.7262,2829.5,2828.3,0.001]
[1763997579481,0.233,2829.4,2828.4,0.1]
[1763997579684,0.233,2829.3,2828.4,0.1]
[1763997579919,0.233,2829.2,2828.4,0.1]
[1763997580121,0.233,2829.2,2828.3,0.001]
[1763997580282,0.4932,2829.1,2828.3,0.001]
[1763997580884,0.1979,2828.4,2828.3,0.001]
[1763997581628,0.6911,2828.4,2828.3,0.001]
[1763997581808,0.1979,2828.4,2828.3,0.001]
[1763997582007,0.4932,2828.8,2828.3,0.001]
[1763997583604,0.638504,2828.7,2828.3,0.001]
[1763997583991,0.72559411,2828.5,2828.3,0.001]
[1763997584191,0.83333523,2828.4,2828.3,0.001]
[1763997584392,1.32653523,2828.4,2828.3,0.001]
[1763997584592,1.73203923,2828.4,2828.3,0.001]
[1763997584902,0.405504,2828.3,2828.0,0.001]
[1763997585102,0.4932,2828.3,2828.0,0.001]
[1763997585304,0.233,2828.2,2828.0,0.001]
[1763997585627,0.233,2828.2,2827.7,0.001]
[1763997585628,0.72559411,2828.0,2827.7,0.001]
[1763997585817,0.1979,2827.8,2827.7,0.001]
[1763997586063,0.1979,2827.8,2826.9,0.001]
[1763997586219,0.4932,2827.7,2826.9,0.001]
[1763997586726,1.13109811,2827.2,2824.5,4.32985711]
[1763997586926,1.13109811,2827.2,2825.3,0.031]
[1763997586927,0.1979,2826.7,2825.3,0.031]
[1763997587339,0.6721,2826.7,2825.3,0.031]
[1763997587630,0.6721,2826.7,2824.8,0.031]
[1763997587927,0.6721,2826.7,2824.3,7.29907512]
[1763997587928,0.6721,2826.7,2825.2,0.031]
[1763997588131,0.4742,2827.6,2825.9,0.031]
[1763997588292,0.233,2827.5,2826.0,0.405504]
[1763997588729,0.7072,2827.5,2826.0,0.405504]
[1763997588931,0.7064,2827.5,2826.0,0.405504]
[1763997589118,0.4742,2827.4,2825.9,0.031]
[1763997589317,0.4742,2827.4,2826.9,0.001]
[1763997589635,0.233,2827.3,2826.9,0.001]
[1763997590005,0.4884,2827.2,2826.9,0.001]
[1763997590407,0.405504,2827.1,2825.3,0.031]
[1763997590710,0.1933,2826.7,2824.9,0.033]
[1763997591053,0.233,2826.6,2825.3,0.033]
[1763997591209,0.7214,2826.6,2824.8,0.72559411]
[1763997591409,0.7214,2826.6,2824.8,0.033]
[1763997591736,0.4884,2826.5,2824.8,0.033]
[1763997592345,0.405504,2826.4,2824.2,0.034]
[1763997592519,0.72559411,2826.0,2824.3,0.034]
[1763997592717,0.72559411,2826.0,2823.7,0.034]
[1763997592929,0.72559411,2826.0,2823.7,0.134]
[1763997592930,1.087204,2825.9,2823.7,0.134]
[1763997593134,1.087204,2825.9,2824.0,0.1]
[1763997593135,0.405504,2825.7,2824.0,0.1]
[1763997593333,0.18127981,2825.8,2824.1,0.03540951]
[1763997593518,0.1933,2825.9,2824.6,0.1]
[1763997593732,0.7214,2825.8,2823.4,7.11455822]
[1763997593953,0.7214,2825.8,2824.2,0.134]
[1763997594255,0.405504,2825.5,2823.5,0.134]
[1763997594634,0.405504,2825.3,2823.5,0.134]
[1763997594838,1.44699411,2825.2,2823.5,0.134]
[1763997595019,1.34455523,2825.1,2823.5,0.134]
[1763997595223,0.405504,2825.5,2824.1,0.1]
[1763997595224,0.4884,2825.5,2824.1,0.1]
[1763997595464,0.233,2825.4,2824.1,0.134]
[1763997595761,0.233,2825.4,2823.9,0.505504]
[1763997595969,0.233,2825.4,2824.1,0.1]
[1763997596672,0.233,2825.3,2824.2,0.034]
[1763997597022,0.7214,2825.3,2823.9,0.505504]
[1763997597229,0.233,2825.3,2824.2,0.1]
[1763997597675,0.233,2825.3,2824.2,0.134]
[1763997598369,0.233,2825.3,2824.2,0.1]
[1763997598575,0.1933,2825.9,2824.4,0.405504]
[1763997598739,0.233,2825.8,2824.7,0.1]
[1763997598923,0.233,2825.8,2824.8,0.405504]
[1763997599258,0.233,2825.8,2824.8,0.439504]
[1763997599445,0.4884,2826.6,2825.1,1.13109811]
[1763997599657,0.233,2826.0,2824.9,0.439504]
[1763997599845,0.233,2826.0,2825.0,0.405504]
[1763997602468,0.405504,2826.3,2824.4,0.72145582]
[1763997602636,0.405504,2826.3,2824.2,0.034]
[1763997602827,0.4884,2826.2,2824.5,0.1]
[1763997603268,0.4884,2826.2,2824.7,0.1]
[1763997603468,0.72559411,2825.8,2823.7,3.57544036]
[1763997603767,0.78401523,2825.7,2824.2,0.1]
[1763997604082,0.78401523,2825.7,2824.1,0.1]
[1763997604083,0.233,2825.6,2824.1,0.1]
[1763997604374,0.7214,2825.6,2823.9,0.034]
[1763997604538,0.7214,2825.6,2824.3,0.1]
[1763997604919,0.72559411,2825.7,2824.0,0.034]
[1763997605044,0.233,2825.7,2824.7,0.1]
[1763997605484,0.4884,2825.6,2824.1,0.71485582]
[1763997605787,0.405504,2825.5,2824.0,0.1]
[1763997606066,0.1933,2824.2,2822.8,0.034]
[1763997606227,0.233,2824.1,2822.6,0.134]
[1763997606431,0.7214,2824.1,2822.6,0.134]
[1763997606728,7.11455822,2825.0,2824.0,0.001]
[1763997606729,0.1933,2824.5,2824.0,0.001]
[1763997606944,0.7214,2824.4,2824.0,0.001]
[1763997607145,0.4884,2824.4,2824.0,0.001]
[1763997607348,0.233,2824.4,2824.0,0.001]
[1763997607549,0.1933,2824.8,2824.0,0.001]
[1763997607845,0.92741751,2826.6,2824.0,0.001]
[1763997607846,0.4884,2825.7,2824.1,0.034]
[1763997608063,0.233,2825.6,2824.1,0.034]
[1763997608389,0.233,2825.6,2824.0,0.001]
[1763997608719,0.233,2825.6,2824.3,0.1]
[1763997608720,0.7214,2825.6,2824.3,0.1]
[1763997608874,0.233,2825.5,2824.1,0.405504]
[1763997609218,0.7214,2825.5,2824.0,0.101]
[1763997609419,0.7214,2825.5,2824.0,0.001]
[1763997609591,0.233,2825.4,2824.2,0.405504]
[1763997609795,0.7214,2825.4,2824.2,0.405504]
[1763997610125,0.1933,2825.9,2824.9,0.1]
[1763997610648,7.30785822,2827.0,2824.8,0.405504]
[1763997610649,0.4884,2827.5,2825.5,10.752357]
[1763997610782,0.1979,2827.8,2825.5,10.752357]
[1763997610783,0.1979,2827.8,2826.3,1.13109811]
[1763997611123,0.1979,2827.8,2826.4,0.405504]
[1763997611314,0.1979,2827.8,2826.4,0.505504]
[1763997611530,0.1979,2827.8,2826.5,0.034]
[1763997611531,0.4309,2827.8,2826.5,0.034]
[1763997611818,0.4904,2827.6,2826.3,0.405504]
[1763997612027,0.4904,2827.6,2826.3,0.1]
[1763997612378,0.233,2827.5,2826.5,0.1]
[1763997612681,0.4904,2827.6,2826.4,0.1]
[1763997612906,0.0012,2827.3,2826.4,0.1]
[1763997613110,0.0012,2827.3,2826.4,0.83456563]
[1763997613312,0.4896,2827.3,2826.0,0.505504]
[1763997614542,0.2342,2827.3,2826.3,0.1]
[1763997614686,0.4884,2827.2,2825.6,0.134]
[1763997614884,0.4884,2827.2,2826.1,0.1]
[1763997615088,0.4884,2827.2,2825.8,0.72559411]
[1763997615287,0.4884,2827.2,2825.9,0.79401523]
[1763997615619,0.4884,2827.2,2825.4,0.233]
[1763997615835,0.4884,2827.2,2825.4,0.1]
[1763997615986,0.4884,2827.2,2825.9,0.405504]
[1763997616190,0.0012,2827.3,2826.4,0.1]
[1763997616393,0.0012,2827.3,2826.6,0.72559411]
[1763997616594,0.4896,2827.3,2826.1,0.1]
[1763997616794,0.4896,2827.3,2826.1,0.79401523]
[1763997617031,0.4896,2827.3,2825.8,0.1]
[1763997617902,0.4896,2827.3,2825.5,0.034]
[1763997617903,0.4896,2827.3,2825.5,0.1]
[1763997618616,0.4896,2827.3,2825.4,0.405504]
[1763997618803,0.405504,2827.2,2825.3,0.134]
[1763997619192,0.4884,2827.1,2825.3,0.85959411]
[1763997619399,0.4884,2827.1,2825.4,0.79741523]
[1763997619595,0.4884,2827.1,2825.4,0.89741523]
[1763997619819,0.4884,2827.1,2825.4,0.1]
[1763997620031,0.405504,2827.0,2825.2,0.1]
[1763997620438,0.6844,2826.9,2825.0,0.1]
[1763997620735,0.233,2826.8,2824.9,0.333]
[1763997620907,0.233,2826.8,2825.2,0.1]
[1763997620908,0.7231,2826.8,2825.2,0.1]
[1763997621111,0.7231,2826.8,2824.5,7.11455822]
[1763997621112,0.405504,2826.7,2824.8,0.1]
[1763997621332,0.1943,2826.9,2825.3,7.11455822]
[1763997621543,0.1943,2826.9,2824.6,0.034]
[1763997621544,0.405504,2826.7,2824.6,0.034]
[1763997621837,0.405504,2826.7,2823.6,0.32441259]
[1763997621838,0.405504,2826.5,2824.1,7.14855822]
[1763997622148,1.13109811,2826.0,2823.9,0.1]
[1763997622311,0.34593981,2825.9,2824.2,7.21455822]
[1763997622634,0.1943,2825.9,2824.6,0.1]
[1763997622836,0.4901,2825.8,2824.6,0.1]
[1763997623067,0.4901,2826.4,2824.7,0.47490598]
[1763997623335,0.4901,2826.4,2824.3,0.034]
[1763997623336,0.233,2826.3,2824.3,0.034]
[1763997623534,0.72559411,2826.2,2824.0,0.035]
[1763997623784,0.4901,2826.1,2824.3,0.034]
[1763997623923,0.233,2826.0,2824.7,0.1]
[1763997624127,0.233,2825.9,2824.6,0.405504]
[1763997624451,0.4273,2825.9,2824.6,0.405504]
[1763997624637,0.4901,2825.8,2824.6,0.405504]
[1763997625226,0.6844,2826.9,2825.0,0.405504]
[1763997625425,0.6844,2826.9,2824.8,0.405504]
[1763997625426,0.9174,2826.9,2825.4,1.13109811]
[1763997625862,0.4901,2826.8,2825.3,0.405504]
[1763997626167,0.4273,2826.9,2825.8,0.1]
[1763997626531,0.002,2827.0,2826.0,0.1]
[1763997626848,0.002,2827.0,2825.9,0.034]
[1763997626849,0.1943,2826.9,2825.4,1.13109811]
[1763997627051,0.1943,2826.9,2825.9,0.1]
[1763997627227,0.002,2827.0,2825.9,0.1]
[1763997627426,0.002,2827.0,2826.2,0.1]
[1763997627628,0.1943,2826.9,2825.8,0.72559411]
[1763997627828,0.002,2827.0,2825.9,0.1]
[1763997628253,0.002,2827.0,2826.0,0.439504]
[1763997628438,0.002,2827.0,2826.2,0.1]
[1763997629478,0.002,2827.0,2826.3,0.405504]
[1763997629681,0.002,2827.0,2826.5,0.1]
[1763997630271,0.002,2827.0,2826.2,0.1]
[1763997630470,0.1943,2826.9,2825.9,0.134]
[1763997630769,0.1943,2826.9,2825.7,0.72559411]
[1763997630931,0.1943,2826.9,2825.6,0.1]
[1763997630932,0.002,2827.0,2825.8,0.0693882]
[1763997631134,0.002,2827.0,2826.2,0.1]
[1763997631360,0.1943,2826.9,2825.8,0.7771652]
[1763997631587,0.1943,2826.9,2826.0,0.1]
[1763997631788,0.4901,2826.8,2825.4,0.72559411]
[1763997631954,0.4901,2826.8,2825.0,0.034]
[1763997632155,0.4901,2826.8,2825.4,0.1]
[1763997633091,0.4901,2826.8,2825.8,0.1]
[1763997633255,0.002,2827.0,2826.0,7.279239]
[1763997633457,0.002,2827.0,2825.9,0.44089095]
[1763997633458,0.1943,2826.9,2826.1,0.772013]
[1763997633706,0.1943,2826.9,2825.9,0.405504]
[1763997633911,0.1943,2826.9,2826.1,0.1]
[1763997634202,0.6844,2826.9,2825.6,0.405504]
[1763997634703,0.4901,2826.8,2825.5,0.1]
[1763997635058,0.4901,2826.8,2825.2,0.034]
[1763997635259,0.4901,2826.8,2825.3,0.1]
[1763997635601,0.4901,2826.8,2825.4,0.405504]
[1763997635775,0.4901,2826.8,2825.6,0.1]
[1763997636159,0.4901,2826.8,2825.5,0.439504]
[1763997636381,0.4901,2826.8,2825.7,0.1]
[1763997636576,0.234,2827.0,2825.8,2.110998]
[1763997636778,0.002,2827.0,2826.3,0.1]
[1763997637105,0.1943,2826.9,2825.9,0.2210998]
[1763997637260,0.002,2827.0,2826.2,0.1]
[1763997637462,0.002,2827.0,2826.0,0.0348]
[1763997637685,0.002,2827.0,2826.1,0.505504]
[1763997638116,0.002,2827.0,2826.7,0.1]
[1763997638269,0.002,2827.0,2826.2,0.76039411]
[1763997638270,0.002,2827.0,2826.8,5.595332]
[1763997638462,0.002,2827.0,2826.9,1.69063131]
[1763997638815,0.002,2827.0,2826.9,1.26589811]
[1763997639693,0.002,2827.0,2826.6,7.60226384]
[1763997639694,0.002,2827.0,2826.6,0.72559411]
[1763997639925,0.002,2827.0,2826.9,0.1348]
[1763997640093,0.002,2827.0,2826.9,3.11297]
[1763997640455,0.002,2827.0,2826.9,0.540304]
[1763997640945,0.002,2827.0,2826.9,2.617504]
[1763997641105,0.002,2827.0,2826.9,0.2617504]
[1763997641290,0.002,2827.0,2826.8,0.1]
[1763997642494,0.002,2827.0,2826.9,2.93217]
[1763997642719,0.002,2827.0,2826.9,3.79233411]
[1763997642995,0.002,2827.0,2826.9,3.89233411]
[1763997643193,0.0012,2827.3,2827.0,1.13109811]
[1763997643430,0.0012,2827.3,2827.2,14.93134695]
[1763997643738,0.0012,2827.3,2827.2,1.23109811]
[1763997644294,0.0012,2827.3,2827.2,1.26589811]
[1763997644694,0.0012,2827.3,2827.2,7.21960511]
[1763997645137,0.0012,2827.3,2826.1,7.63706384]
[1763997645360,0.4913,2827.3,2825.4,0.0348]
[1763997645639,0.1943,2826.3,2825.2,0.001]
[1763997645819,0.4913,2827.3,2825.7,0.1]
[1763997645996,0.1943,2826.8,2826.0,0.1]
[1763997646836,0.4901,2827.2,2826.0,0.1]
[1763997647001,0.1943,2826.9,2826.0,0.1]
[1763997647331,0.1943,2826.9,2825.7,0.0348]
[1763997647332,0.1943,2826.9,2825.7,1.23109811]
[1763997647631,0.1943,2826.9,2826.3,0.1]
[1763997648035,0.4708,2827.3,2826.3,0.1]
[1763997648339,0.4708,2827.3,2826.6,0.1]
[1763997648545,0.0012,2827.3,2826.7,0.405504]
[1763997648846,0.0012,2827.3,2827.2,1.23109811]
[1763997649043,0.0012,2827.3,2827.2,8.86816195]
[1763997649334,0.002,2827.6,2827.5,4.19724611]
[1763997649636,0.002,2827.9,2827.8,0.505504]
[1763997649795,0.6638,2829.7,2827.9,1.13109811]
[1763997650025,0.6638,2829.7,2828.8,0.405504]
[1763997650199,0.6638,2829.7,2829.0,0.1]
[1763997651795,0.002,2829.7,2829.0,0.1]
[1763997651994,0.002,2829.7,2828.7,0.72559411]
[1763997651995,0.002,2829.7,2828.8,0.1]
[1763997652210,0.4792,2829.6,2828.2,0.1]
[1763997652441,0.002,2829.7,2828.3,0.75519411]
[1763997652594,0.002,2829.7,2828.9,0.1]
[1763997652995,0.4792,2829.6,2828.6,0.505504]
[1763997653399,0.4792,2829.6,2828.3,0.1]
[1763997653608,0.4792,2829.6,2828.7,0.1]
[1763997653898,0.002,2829.7,2828.8,0.405504]
[1763997654158,0.002,2829.7,2829.2,0.1]
[1763997654502,0.002,2829.7,2829.0,0.405504]
[1763997654744,0.4812,2829.7,2828.7,0.405504]
[1763997654941,0.4812,2829.7,2828.6,0.1]
[1763997655625,0.4812,2829.7,2828.9,0.1]
[1763997656349,0.4812,2829.7,2828.4,0.405504]
[1763997656504,0.4812,2829.7,2828.8,0.405504]
[1763997656843,0.4812,2829.7,2828.9,0.1]
[1763997657711,0.4812,2829.7,2828.6,0.1]
[1763997657926,0.4812,2829.7,2828.9,0.1]
[1763997658295,0.002,2829.7,2828.9,0.1]
[1763997658513,0.002,2829.7,2829.2,0.1]
[1763997658733,0.002,2829.7,2829.0,0.405504]
[1763997658932,0.4812,2829.7,2828.9,0.1]
[1763997659150,0.4812,2829.7,2828.7,0.405504]
[1763997659451,0.4812,2829.7,2828.9,0.1]
[1763997659741,0.4812,2829.7,2828.1,3.56551765]
[1763997659742,0.4812,2829.7,2828.6,0.1]
[1763997660128,0.1826,2828.7,2828.0,0.1]
[1763997660442,0.6618,2829.6,2828.5,0.1]
[1763997660751,0.6618,2829.6,2827.9,0.001]
[1763997660898,0.6618,2829.6,2827.6,0.001]
[1763997660899,0.1826,2828.0,2827.6,0.001]
[1763997661325,0.6618,2828.0,2827.6,0.001]
[1763997661660,0.6618,2828.0,2825.9,0.0304]
[1763997661661,0.405504,2827.9,2825.9,0.0304]
[1763997661830,0.405504,2827.9,2826.1,0.1]
[1763997661831,0.884704,2827.9,2826.1,0.1]
[1763997662025,0.884704,2827.9,2825.9,0.1]
[1763997662228,0.4792,2827.8,2826.0,0.0353857]
[1763997662449,0.4792,2827.8,2826.6,0.1]
[1763997662450,0.7112,2827.8,2826.6,0.1]
[1763997662643,0.4792,2827.7,2826.6,0.1]
[1763997662813,0.1826,2828.0,2826.9,0.1]
[1763997663018,0.4792,2827.9,2826.9,0.1]
[1763997663214,0.4792,2827.9,2826.5,0.1]
[1763997664232,0.4792,2827.9,2826.4,0.405504]
[1763997665367,0.4792,2827.9,2826.6,0.1]
[1763997665676,0.4792,2827.9,2826.9,0.1]
[1763997665978,0.4792,2827.9,2826.6,0.1]
[1763997666179,0.4792,2827.9,2826.2,0.1]
[1763997666642,0.405504,2827.8,2825.9,0.1]
[1763997666847,1.05033069,2827.7,2825.6,0.1]
[1763997667040,1.13109811,2827.6,2825.5,0.001]
[1763997667246,0.405504,2827.4,2825.5,0.001]
[1763997667649,0.405504,2827.2,2825.6,0.1]
[1763997668281,0.4792,2827.1,2825.6,0.1]
[1763997668651,0.4792,2827.1,2826.0,0.1]
[1763997668981,0.4792,2827.1,2825.5,0.001]
[1763997669174,0.405504,2827.0,2825.5,0.001]
[1763997669563,0.1826,2825.6,2825.5,0.001]
[1763997670051,0.6618,2825.6,2825.5,0.001]
[1763997670565,0.1826,2826.0,2825.5,0.001]
[1763997670885,0.4792,2826.1,2825.5,0.001]
[1763997670886,0.4792,2826.7,2825.6,0.1]
[1763997671072,0.4792,2826.7,2825.5,0.001]
[1763997671386,0.1826,2825.6,2825.5,0.001]
[1763997671544,0.405504,2826.6,2825.5,0.001]
[1763997671750,0.4792,2826.5,2825.5,0.101]
[1763997671985,0.4792,2826.5,2825.5,0.001]
[1763997674168,0.1826,2826.9,2825.7,0.1]
[1763997674494,0.1826,2826.9,2826.0,0.1]
[1763997674799,7.52378626,2828.4,2826.1,0.405504]
[1763997674960,7.52378626,2828.4,2826.0,0.1]
[1763997674961,0.1826,2827.4,2826.4,0.1]
[1763997675296,0.93171893,2829.1,2826.4,0.1]
[1763997675297,0.4792,2828.2,2827.3,0.1]
[1763997675505,0.4792,2828.5,2827.3,0.1]
[1763997675653,0.6618,2827.9,2827.3,0.1]
[1763997676005,0.232,2828.7,2827.3,0.1]
[1763997676205,0.4792,2828.6,2827.3,0.1]
[1763997676357,0.1826,2827.4,2827.3,0.1]
[1763997677158,0.6618,2827.4,2827.3,0.1]
[1763997677352,0.002,2827.9,2826.4,0.72559411]
[1763997677353,0.1826,2827.7,2826.4,0.75799411]
[1763997677557,0.1826,2827.7,2826.2,3.53824129]
[1763997677558,0.1826,2827.7,2826.7,0.1]
[1763997677785,0.1826,2827.7,2826.0,0.72559411]
[1763997677786,0.4792,2827.6,2826.0,0.72559411]
[1763997678000,0.4792,2827.6,2826.3,0.1]
[1763997678204,0.002,2827.9,2826.8,0.405504]
[1763997678379,0.002,2827.9,2827.1,0.405504]
[1763997678568,0.002,2827.9,2827.3,0.405504]
[1763997678969,0.1846,2827.9,2827.0,0.405504]
[1763997679151,0.002,2827.9,2827.0,0.405504]
[1763997679353,0.002,2827.9,2827.3,0.405504]
[1763997679553,0.002,2827.9,2827.3,0.1]
[1763997679886,0.002,2827.9,2827.6,0.1]
[1763997681123,0.002,2827.9,2827.0,0.72559411]
[1763997681124,0.002,2827.9,2827.3,0.405504]
[1763997681334,0.002,2827.9,2827.2,0.1]
[1763997681335,0.002,2827.9,2827.2,0.637504]
[1763997681535,0.002,2827.9,2827.8,3.59366411]
[1763997681848,0.002,2828.2,2828.1,0.505504]
[1763997682190,0.002,2828.2,2828.1,0.535904]
[1763997683035,0.002,2828.2,2828.1,0.405504]
[1763997683230,0.002,2828.2,2828.1,0.505504]
[1763997683595,0.002,2828.2,2828.1,0.535904]
[1763997683813,0.001,2828.2,2828.1,12.5778444]
[1763997684018,0.0002,2828.2,2828.1,12.5778444]
[1763997684331,0.0002,2828.2,2828.1,8.94190155]
[1763997684533,0.0002,2828.2,2827.5,0.0304]
[1763997684857,0.0002,2828.2,2827.4,7.75578626]
[1763997684858,0.0002,2828.2,2827.9,0.1]
[1763997685463,0.0002,2828.2,2828.1,0.405504]
[1763997685666,0.0002,2828.2,2828.1,6.85348011]
[1763997685819,0.0002,2828.2,2828.1,6.88388011]
[1763997686028,0.0002,2828.2,2828.1,2.70226475]
[1763997686234,0.0002,2828.2,2828.1,5.70551475]
[1763997686432,0.0002,2828.2,2828.1,5.04611375]
[1763997687062,0.0002,2828.2,2828.1,8.5820566]
[1763997687241,0.0002,2828.2,2828.1,2.70226475]
[1763997688067,0.0002,2828.2,2827.5,0.1]
[1763997688264,0.4815,2828.2,2827.1,0.232]
[1763997688572,0.4815,2828.2,2827.7,0.1]
[1763997688857,0.4815,2828.2,2827.4,0.1]
[1763997689159,0.4815,2828.2,2827.1,0.1]
[1763997689323,0.4815,2828.2,2827.2,0.405504]
[1763997689655,0.4815,2828.2,2827.1,0.1]
[1763997689853,0.4815,2828.2,2827.5,0.1]
[1763997690429,0.4815,2828.2,2827.2,0.1]
[1763997691555,0.4815,2828.2,2826.9,0.0304]
[1763997691758,0.4815,2828.2,2827.5,0.1]
[1763997692523,0.4815,2828.2,2826.9,0.1]
[1763997692936,0.4815,2828.2,2827.2,0.1]
[1763997693164,0.4815,2828.2,2826.8,0.405504]
[1763997693165,0.4815,2828.2,2827.4,0.1]
[1763997693473,0.4815,2828.2,2827.1,0.405504]
[1763997693474,0.0002,2828.2,2827.7,0.1]
[1763997694157,0.0002,2828.2,2827.1,1.16149811]
[1763997694362,0.0002,2828.2,2827.3,0.405504]
[1763997694565,0.0002,2828.2,2828.1,0.1]
[1763997694727,0.0002,2828.2,2827.3,0.405504]
[1763997694922,0.0002,2828.2,2827.9,0.1]
[1763997695138,0.0002,2828.2,2828.1,0.505504]
[1763997695630,0.0002,2828.2,2828.1,0.405504]
[1763997696026,0.0002,2828.2,2828.1,0.505504]
[1763997696561,0.0002,2828.2,2828.1,0.1]
[1763997696724,0.0002,2828.2,2827.8,0.405504]
[1763997697126,0.0002,2828.2,2828.0,0.1]
[1763997698325,0.0002,2828.2,2828.1,0.1]
[1763997698553,0.0002,2828.2,2828.1,0.505504]
[1763997699013,0.0002,2828.2,2828.1,1.13109811]
[1763997699209,0.0002,2828.2,2828.1,2.19786251]
[1763997699377,0.0002,2828.2,2828.1,1.96586251]
[1763997699718,0.0002,2828.2,2828.1,1.13109811]
[1763997700080,0.0002,2828.2,2827.2,0.7682044]